bitfinex-derivatives/quotes_ETHF0:USTF0_20240930
["timestamp","ask_amount","ask_price","bid_price","bid_amount"]
[1727720664964,3.2078,2586.1,2585.0,3.34]
[1727720664965,3.72676,2586.0,2585.0,4.439]
[1727720665169,0.3868,2585.7,2585.0,4.82589]
[1727720665372,3.2078,2585.5,2585.0,4.439]
[1727720665674,3.2078,2585.2,2584.4,3.2078]
[1727720666066,1.60495453,2585.5,2585.1,0.38689]
[1727720666267,0.6089,2585.5,2585.1,0.38689]
[1727720666469,3.2078,2585.7,2584.9,3.2078]
[1727720666674,0.99605453,2585.9,2585.2,3.2078]
[1727720666873,4.20385453,2586.0,2585.2,3.59466]
[1727720667165,3.2078,2586.0,2585.2,3.59466]
[1727720667372,3.2078,2585.7,2585.0,2.1953]
[1727720667673,3.2078,2585.7,2585.0,2.19529]
[1727720667878,3.2078,2585.7,2585.0,1.8084]
[1727720668069,3.2078,2585.7,2585.0,1.2312]
[1727720668070,4.20385453,2585.7,2585.0,1.2312]
[1727720668378,1.38282453,2585.9,2585.1,0.38688]
[1727720668577,3.2078,2585.7,2585.1,0.38688]
[1727720668874,3.2078,2585.7,2585.0,1.61809]
[1727720669076,3.2078,2585.7,2585.2,0.38687]
[1727720669271,0.99605453,2585.9,2585.4,0.38683]
[1727720669471,1.2376,2586.1,2585.6,0.3868]
[1727720669772,1.2376,2586.1,2585.5,3.2078]
[1727720669979,1.2376,2586.1,2585.7,0.38679]
[1727720670169,1.2376,2586.1,2585.8,0.38678]
[1727720670372,3.2078,2586.2,2585.9,0.38676]
[1727720670672,4.20385453,2586.5,2585.9,0.38676]
[1727720670874,4.20385453,2586.5,2586.0,0.38675]
[1727720671187,4.20385453,2586.5,2586.1,0.38672]
[1727720671188,3.2078,2586.5,2586.1,0.38672]
[1727720671385,3.2078,2586.5,2585.8,3.2078]
[1727720671386,2.17355453,2586.6,2585.8,4.17476]
[1727720671680,0.99605453,2586.9,2586.5,0.38668]
[1727720671870,0.99605453,2587.0,2586.5,0.38668]
[1727720672068,0.99605453,2587.0,2586.1,3.2078]
[1727720672269,3.2078,2586.5,2586.1,0.38673]
[1727720672465,3.2078,2586.5,2586.0,0.38674]
[1727720672981,3.2078,2586.5,2585.9,1.57996]
[1727720673379,3.2078,2586.5,2586.0,0.38674]
[1727720673578,3.2078,2586.5,2585.9,1.57996]
[1727720673775,3.2078,2586.5,2585.6,1.849]
[1727720674080,0.6269,2586.4,2585.8,0.38678]
[1727720674280,1.0136,2586.4,2585.8,0.38678]
[1727720674479,0.38671,2586.3,2585.7,0.38679]
[1727720674670,0.6269,2586.4,2585.8,0.38677]
[1727720674973,0.6269,2586.4,2585.6,1.849]
[1727720674974,3.2078,2586.2,2585.6,1.849]
[1727720675170,0.38675,2586.1,2585.5,3.59462]
[1727720675373,3.59453,2586.2,2585.5,3.59462]
[1727720675568,0.38674,2586.1,2585.5,3.59462]
[1727720675778,0.38674,2586.1,2585.5,3.2078]
[1727720675975,3.59452,2586.2,2585.6,0.3868]
[1727720676379,0.38675,2586.0,2585.5,3.2078]
[1727720676577,0.38674,2586.1,2585.6,0.38681]
[1727720676977,3.2078,2586.2,2585.7,0.38679]
[1727720677180,3.2078,2586.2,2585.5,3.2078]
[1727720677387,3.59453,2586.2,2585.6,0.3868]
[1727720677588,3.2078,2586.2,2585.6,0.3868]
[1727720677878,3.2078,2586.2,2585.5,3.59462]
[1727720677879,0.38675,2586.1,2585.5,3.59462]
[1727720678080,3.2078,2586.2,2585.5,3.2078]
[1727720678282,0.38675,2586.0,2585.5,3.59462]
[1727720678488,0.38676,2586.0,2585.5,3.59462]
[1727720679384,5.17066453,2586.2,2585.3,0.5784]
[1727720679385,3.2078,2585.9,2585.3,0.5784]
[1727720679586,3.2078,2585.9,2585.6,0.38681]
[1727720679781,3.2078,2585.9,2585.3,0.5784]
[1727720679997,3.2078,2585.9,2585.7,0.38679]
[1727720680285,0.38674,2586.1,2585.4,3.2078]
[1727720680482,4.20385453,2586.2,2585.4,3.2078]
[1727720680483,4.59058453,2586.2,2585.7,0.38679]
[1727720680686,0.38674,2586.1,2585.7,0.38679]
[1727720680983,3.59453,2586.2,2585.8,0.38678]
[1727720681289,4.59058453,2586.2,2585.8,0.38678]
[1727720681587,0.99605453,2586.3,2585.5,0.96707]
[1727720681783,0.99605453,2586.3,2586.2,0.38672]
[1727720682087,3.2078,2586.5,2586.4,0.38669]
[1727720682284,2.50218569,2587.0,2586.4,0.38669]
[1727720682285,1.38268453,2586.9,2586.4,0.38669]
[1727720682478,1.38268453,2586.9,2586.1,1.2081]
[1727720682479,0.99605453,2586.9,2586.1,1.2081]
[1727720682684,3.2078,2586.6,2586.2,0.38672]
[1727720682880,3.2078,2586.6,2586.1,1.2081]
[1727720682881,4.20385453,2586.6,2586.1,1.2081]
[1727720683081,3.2078,2586.6,2586.2,0.38671]
[1727720683281,3.2078,2586.6,2586.1,1.2081]
[1727720683282,4.20385453,2586.6,2586.1,1.2081]
[1727720683482,4.20385453,2586.6,2586.5,0.38668]
[1727720683483,3.2078,2586.6,2586.5,0.38668]
[1727720683684,0.99605453,2586.9,2586.6,0.38665]
[1727720683985,0.99605453,2586.9,2586.1,5.38272]
[1727720683986,0.99605453,2587.1,2586.2,4.17457]
[1727720684184,3.2078,2587.0,2586.2,3.2078]
[1727720684688,4.20385453,2587.0,2586.2,3.2078]
[1727720684990,0.99605453,2586.9,2586.5,0.38667]
[1727720685194,4.20385453,2587.0,2586.5,0.38667]
[1727720686588,4.20385453,2587.0,2586.3,3.34]
[1727720686887,3.2078,2587.0,2586.7,0.38664]
[1727720687083,3.2078,2587.0,2586.5,3.2078]
[1727720687586,3.2078,2587.0,2586.7,0.38664]
[1727720687795,3.2078,2587.0,2586.8,0.38662]
[1727720687988,3.2078,2587.0,2586.5,3.2078]
[1727720688293,3.2078,2587.0,2586.7,0.38664]
[1727720688498,3.2078,2587.0,2586.8,0.38663]
[1727720688793,1.49689624,2587.2,2586.5,3.2078]
[1727720688794,0.99605453,2587.2,2586.5,3.2078]
[1727720689094,5.38705453,2587.4,2587.0,0.3866]
[1727720689291,4.391,2587.4,2586.8,3.2078]
[1727720689489,0.99605453,2587.3,2586.9,0.38661]
[1727720689789,0.99605453,2587.3,2586.5,3.2078]
[1727720689980,3.2078,2587.4,2587.2,0.38657]
[1727720690181,3.2078,2587.4,2586.8,3.2078]
[1727720690583,3.2078,2587.4,2586.9,0.38661]
[1727720690784,3.2078,2587.4,2586.7,0.5812]
[1727720691191,3.2078,2587.4,2586.8,0.38662]
[1727720691387,3.2078,2587.4,2586.7,0.5812]
[1727720691586,3.2078,2587.4,2586.9,0.38662]
[1727720691791,3.2078,2587.4,2587.2,0.38656]
[1727720692285,3.2078,2587.4,2586.8,4.4126]
[1727720692587,3.2078,2587.4,2587.2,0.38657]
[1727720693088,3.2078,2587.4,2586.8,4.4126]
[1727720693597,3.2078,2587.4,2587.1,0.38658]
[1727720694092,3.2078,2587.4,2586.8,4.4126]
[1727720694588,3.2078,2587.4,2587.0,0.3866]
[1727720694795,0.38656,2587.3,2586.8,0.628]
[1727720695386,4.77186,2587.4,2586.7,0.5812]
[1727720695592,4.77186,2587.4,2586.7,0.96783]
[1727720695593,3.2078,2587.1,2586.7,0.96783]
[1727720695784,0.97348,2587.2,2586.7,0.5812]
[1727720695989,3.2078,2587.1,2586.7,0.5812]
[1727720696496,0.5869,2587.2,2586.8,0.38662]
[1727720696991,0.99605453,2587.6,2587.5,0.38653]
[1727720697289,4.70469624,2587.8,2587.3,3.2078]
[1727720697290,3.2078,2587.8,2587.3,3.2078]
[1727720697493,3.59429,2587.8,2587.3,0.38655]
[1727720697687,3.59429,2587.8,2587.2,0.5982]
[1727720697888,0.99605453,2587.7,2587.3,0.38655]
[1727720698286,4.20385453,2587.8,2587.2,0.5982]
[1727720698491,0.38651,2587.6,2587.1,0.38658]
[1727720698691,0.99605453,2587.6,2587.3,0.38655]
[1727720698883,0.99605453,2587.6,2587.0,3.2078]
[1727720698884,0.99605453,2587.6,2587.2,0.38656]
[1727720699083,2.07949624,2587.7,2587.0,3.2078]
[1727720699084,1.57865453,2587.7,2587.0,3.2078]
[1727720699287,1.57865453,2587.7,2587.3,0.38655]
[1727720699490,1.57865453,2587.7,2587.4,0.38654]
[1727720699685,0.99605453,2587.8,2587.6,0.38651]
[1727720700090,0.99605453,2587.9,2587.3,4.4334]
[1727720700294,0.99605453,2587.9,2587.7,0.38649]
[1727720700593,1.49689624,2588.0,2587.4,3.34]
[1727720700594,0.99605453,2588.0,2587.4,3.34]
[1727720700895,5.17005453,2587.9,2587.0,3.2078]
[1727720701100,3.2078,2587.6,2587.0,3.2078]
[1727720701294,0.99605453,2587.6,2587.4,0.38653]
[1727720701595,1.49689624,2587.8,2587.4,3.34]
[1727720701596,0.99605453,2587.8,2587.4,3.34]
[1727720701796,3.2078,2588.0,2587.7,0.38649]
[1727720702483,3.2078,2588.0,2587.6,3.5943]
[1727720702688,3.2078,2588.0,2587.7,0.38649]
[1727720702893,3.2078,2588.0,2587.6,0.38651]
[1727720703097,3.2078,2588.0,2587.7,0.3865]
[1727720703388,3.2078,2588.0,2587.7,0.38648]
[1727720704094,3.2078,2588.0,2587.7,0.3865]
[1727720705594,3.2078,2588.0,2587.7,0.38648]
[1727720706103,3.2078,2588.0,2587.6,0.38651]
[1727720706395,3.2078,2588.0,2587.5,0.38652]
[1727720706694,3.2078,2588.0,2587.3,3.2078]
[1727720706886,3.2078,2588.0,2587.4,3.34]
[1727720707196,3.2078,2588.0,2587.6,3.2078]
[1727720707399,3.2078,2588.0,2587.7,0.38649]
[1727720707586,3.2078,2588.0,2587.6,3.2078]
[1727720707793,3.2078,2588.0,2587.4,3.34]
[1727720707996,3.2078,2588.0,2587.6,3.2078]
[1727720708198,3.2078,2588.0,2587.8,0.38648]
[1727720708391,3.2078,2588.0,2587.6,3.2078]
[1727720708392,3.2078,2588.0,2587.9,0.38647]
[1727720708597,3.2078,2588.0,2587.7,3.34]
[1727720708598,3.2078,2588.4,2587.7,9.61058567]
[1727720708791,0.6091,2588.5,2588.0,3.34]
[1727720708995,3.2078,2588.7,2588.1,0.38644]
[1727720709303,3.2078,2588.7,2588.2,0.38642]
[1727720709593,3.2078,2588.7,2588.0,3.34]
[1727720709793,3.2078,2588.7,2588.4,0.38638]
[1727720709989,4.4241,2589.0,2588.2,3.2078]
[1727720710196,4.4241,2589.0,2588.3,3.34]
[1727720710395,4.4241,2589.0,2588.7,0.38634]
[1727720710595,8.2865,2589.0,2588.3,3.9765]
[1727720710790,0.38633,2588.9,2588.4,0.38639]
[1727720711190,4.81041,2589.0,2588.6,0.38636]
[1727720711392,4.8104,2589.0,2588.6,0.38636]
[1727720711599,4.8104,2589.0,2588.8,0.38632]
[1727720711600,3.2078,2589.0,2588.8,0.38632]
[1727720711802,3.2078,2589.4,2588.6,3.34]
[1727720712098,0.38627,2589.3,2588.9,0.38632]
[1727720712291,8.0622,2589.6,2589.2,0.38627]
[1727720712292,1.2502,2589.6,2589.2,0.38627]
[1727720712493,3.2078,2589.7,2589.1,3.2078]
[1727720712694,3.2078,2589.8,2589.2,3.34]
[1727720712898,3.2078,2589.8,2589.1,3.2078]
[1727720713199,3.2078,2589.8,2589.0,0.6365]
[1727720713394,3.2078,2589.8,2589.2,3.34]
[1727720713699,3.2078,2589.8,2589.3,0.6109]
[1727720713902,3.2078,2589.8,2589.5,3.34]
[1727720714095,8.99349,2590.5,2589.8,0.38617]
[1727720714403,4.4274,2590.5,2589.7,3.2078]
[1727720714599,3.2078,2590.2,2589.6,0.38621]
[1727720714800,3.2078,2590.2,2589.5,3.34]
[1727720715103,3.2078,2590.2,2589.7,0.38619]
[1727720715304,3.2078,2590.2,2589.5,3.34]
[1727720715604,3.2078,2590.2,2589.7,3.2078]
[1727720715791,3.2078,2590.2,2589.9,0.38616]
[1727720715995,3.2078,2590.2,2589.8,3.34]
[1727720716207,3.2078,2590.2,2590.0,0.38614]
[1727720716402,3.2078,2590.5,2590.0,0.38614]
[1727720716596,3.2078,2590.5,2589.9,1.2326]
[1727720716798,3.2078,2590.5,2588.2,0.387]
[1727720716799,3.59393,2590.2,2589.3,3.34]
[1727720716991,3.2078,2590.2,2589.8,0.38617]
[1727720717194,3.2078,2590.2,2589.8,0.38618]
[1727720717391,3.2078,2590.2,2589.6,3.34]
[1727720717798,3.2078,2590.2,2590.0,0.38615]
[1727720718099,3.2078,2590.2,2589.7,0.6052]
[1727720718100,3.2078,2590.2,2589.7,1.8378]
[1727720718304,3.2078,2590.2,2590.1,0.38614]
[1727720718511,3.2078,2590.2,2589.9,3.34]
[1727720718800,3.2078,2590.2,2590.0,0.38615]
[1727720719204,3.2078,2590.2,2589.9,3.34]
[1727720719404,3.2078,2590.6,2589.9,3.34]
[1727720719603,3.59383,2590.9,2590.0,3.2078]
[1727720719904,1.2191,2591.1,2590.6,0.38606]
[1727720720092,1.2191,2591.1,2590.5,3.34]
[1727720720093,1.2191,2591.1,2590.8,0.38603]
[1727720720290,3.59376,2591.3,2590.8,0.38603]
[1727720720291,3.2078,2591.3,2590.8,0.38603]
[1727720720492,3.59376,2591.3,2590.8,0.38603]
[1727720720694,3.2078,2591.3,2590.6,3.2078]
[1727720720896,3.2078,2591.3,2590.8,3.34]
[1727720721109,3.2078,2591.0,2590.7,0.38604]
[1727720721302,3.2078,2591.0,2590.4,5.11]
[1727720721502,3.2078,2590.7,2590.2,3.2078]
[1727720721698,3.2078,2590.7,2590.1,5.11]
[1727720721898,3.2078,2590.7,2590.3,0.3861]
[1727720722094,3.2078,2590.7,2590.4,0.38609]
[1727720722403,3.2078,2590.7,2590.2,3.2078]
[1727720722604,3.2078,2590.7,2590.6,0.38606]
[1727720722803,3.2078,2591.1,2590.8,0.38603]
[1727720723006,3.2078,2591.1,2590.4,3.34]
[1727720723207,3.2078,2591.1,2590.7,0.38604]
[1727720723405,3.2078,2591.1,2590.8,0.38603]
[1727720723605,3.2078,2591.1,2590.4,3.34]
[1727720723907,3.2078,2591.1,2590.7,0.38604]
[1727720724306,3.2078,2591.1,2590.4,3.34]
[1727720724507,2.18342,2591.6,2590.4,0.38609]
[1727720724508,3.2078,2590.8,2590.4,0.38609]
[1727720724811,3.2078,2590.8,2590.2,1.77]
[1727720725004,3.2078,2590.8,2590.5,0.38607]
[1727720725309,3.2078,2590.8,2590.6,0.38606]
[1727720725506,3.2078,2590.8,2590.2,4.9778]
[1727720725706,3.2078,2590.8,2590.3,0.3861]
[1727720725909,3.2078,2590.5,2590.2,0.38611]
[1727720726214,3.2078,2590.5,2590.4,0.38609]
[1727720726504,3.2078,2590.5,2590.2,0.38612]
[1727720726812,3.2078,2590.5,2590.1,5.11]
[1727720727010,3.2078,2590.5,2590.4,0.38609]
[1727720727217,3.2078,2590.5,2590.1,5.11]
[1727720727504,3.2078,2590.5,2590.4,0.38609]
[1727720727906,3.7961,2590.9,2590.0,4.5924]
[1727720728106,3.7961,2590.9,2590.8,0.38603]
[1727720728607,0.5864,2591.0,2590.4,3.34]
[1727720728908,3.2078,2591.2,2590.8,0.38603]
[1727720729112,3.2078,2591.2,2590.4,4.30522]
[1727720729113,3.2078,2591.2,2590.4,6.5478]
[1727720729297,3.34,2591.7,2590.4,6.5478]
[1727720729298,3.2078,2591.9,2591.1,6.5478]
[1727720729499,3.2078,2591.9,2591.4,0.38594]
[1727720729712,0.38589,2591.8,2591.2,0.38597]
[1727720730011,3.2078,2591.6,2591.3,0.38596]
[1727720730209,3.2078,2591.6,2591.1,5.109]
[1727720730414,3.2078,2591.6,2591.1,8.3168]
[1727720730713,3.2078,2591.6,2591.1,3.2078]
[1727720731007,3.2078,2591.6,2590.9,4.5872]
[1727720731201,3.2078,2591.6,2591.0,0.386]
[1727720731202,0.38593,2591.5,2591.0,0.386]
[1727720731407,0.5989,2591.5,2590.9,4.5872]
[1727720731610,0.5989,2591.5,2591.4,0.38594]
[1727720732311,3.2078,2591.9,2591.2,3.34]
[1727720732502,3.2078,2591.9,2591.7,0.38589]
[1727720732706,3.2078,2591.9,2591.3,0.96491]
[1727720732903,3.2078,2591.9,2591.8,0.38589]
[1727720733611,0.6252,2592.0,2591.5,7.51261]
[1727720733910,0.6252,2592.0,2591.8,0.38588]
[1727720734103,0.6252,2592.0,2591.9,0.38587]
[1727720734510,0.6282,2592.1,2592.0,0.38586]
[1727720734704,0.6242,2592.6,2592.4,0.38578]
[1727720734913,0.6242,2592.6,2592.5,0.38578]
[1727720735219,3.832,2592.6,2592.5,0.38578]
[1727720735416,0.6242,2592.6,2592.5,0.38578]
[1727720735710,0.6242,2592.6,2592.3,0.38581]
[1727720735912,0.6242,2592.6,2592.1,3.34]
[1727720736213,3.2078,2592.4,2591.9,3.9511]
[1727720736418,3.2078,2592.4,2592.3,0.38581]
[1727720736707,3.2078,2592.4,2591.9,3.9511]
[1727720736913,3.2078,2592.4,2592.2,0.38581]
[1727720737104,3.2078,2592.4,2591.9,3.9511]
[1727720737304,3.2078,2592.4,2592.2,0.38582]
[1727720737505,3.2078,2592.4,2591.9,3.9511]
[1727720737724,0.6363,2592.3,2591.9,3.34]
[1727720738014,3.2078,2592.1,2591.5,3.34]
[1727720738612,3.2078,2592.1,2591.8,0.38587]
[1727720738911,3.2078,2592.1,2591.5,3.34]
[1727720739103,3.2078,2592.1,2591.3,3.2078]
[1727720739309,0.6363,2592.3,2592.0,3.34]
[1727720739504,0.6363,2592.3,2592.1,0.38583]
[1727720739805,3.2078,2592.2,2592.0,3.34]
[1727720740012,0.38585,2592.1,2591.6,0.3859]
[1727720740211,3.2078,2592.2,2591.3,4.17268]
[1727720740212,3.2078,2591.9,2591.3,4.17268]
[1727720740407,3.2078,2592.2,2591.3,3.2078]
[1727720740616,3.2078,2592.2,2591.4,0.38593]
[1727720740816,3.2078,2591.9,2591.2,5.097]
[1727720741019,3.2078,2591.6,2591.2,3.34]
[1727720741211,3.2078,2591.6,2591.3,0.38595]
[1727720741413,3.2078,2591.6,2591.2,3.34]
[1727720741613,3.2078,2591.6,2591.3,0.38595]
[1727720742013,3.2078,2591.6,2591.2,3.34]
[1727720742211,3.2078,2591.6,2591.3,0.38595]
[1727720742412,3.2078,2591.6,2591.2,3.34]
[1727720742820,3.2078,2591.6,2591.4,0.38594]
[1727720743018,3.2078,2591.6,2591.5,0.38593]
[1727720743422,0.6068,2591.8,2591.3,3.2078]
[1727720743727,0.6068,2591.8,2591.6,0.38591]
[1727720743908,0.6068,2591.8,2591.3,4.17271]
[1727720744111,0.6068,2591.8,2591.5,0.38592]
[1727720744614,0.6068,2591.8,2591.0,6.1708]
[1727720744615,3.8146,2591.8,2591.0,6.1708]
[1727720744818,3.8146,2591.8,2591.2,4.30493]
[1727720745017,3.8146,2591.8,2591.7,0.3859]
[1727720745215,3.8146,2591.8,2591.3,4.17271]
[1727720745216,0.6068,2591.8,2591.3,4.17271]
[1727720745524,0.6068,2591.8,2591.7,0.3859]
[1727720745817,0.6068,2591.8,2591.3,3.2078]
[1727720746020,0.6068,2591.8,2591.7,0.3859]
[1727720746210,0.6068,2591.8,2591.2,4.30493]
[1727720746411,0.6068,2591.8,2591.3,0.38595]
[1727720746412,0.9927,2591.8,2591.3,0.38595]
[1727720746723,0.6068,2591.8,2591.4,0.38594]
[1727720746921,0.6068,2591.8,2591.1,0.38599]
[1727720747218,0.6068,2591.8,2591.0,3.2078]
[1727720747219,3.2078,2591.6,2591.0,3.2078]
[1727720747421,0.38598,2591.2,2591.0,3.2078]
[1727720747610,1.58495,2591.5,2591.0,3.2078]
[1727720747611,0.38597,2591.3,2591.0,3.2078]
[1727720747814,0.38599,2591.1,2591.0,3.2078]
[1727720748123,0.38603,2590.9,2590.1,3.2078]
[1727720748421,3.2078,2590.8,2590.1,3.8045]
[1727720748626,3.2078,2590.5,2589.7,6.5478]
[1727720748824,3.2078,2590.5,2590.1,0.38613]
[1727720749022,3.2078,2590.5,2589.7,6.5478]
[1727720749220,3.2078,2590.5,2589.8,0.38618]
[1727720749523,3.2078,2590.5,2590.0,0.38614]
[1727720750226,3.2078,2590.5,2589.8,0.38618]
[1727720750424,3.2078,2590.5,2589.7,3.72619]
[1727720750618,3.2078,2590.2,2589.7,3.72619]
[1727720750817,3.2078,2590.2,2589.8,0.38618]
[1727720751120,3.2078,2590.2,2589.8,0.38617]
[1727720751316,3.2078,2590.2,2589.7,3.72619]
[1727720751519,3.2078,2590.2,2589.3,3.2078]
[1727720751721,0.5874,2590.4,2589.1,3.72628]
[1727720751722,3.59397,2589.9,2589.1,3.72628]
[1727720752026,3.59403,2589.6,2588.8,5.08739482]
[1727720752224,3.59403,2589.6,2589.1,3.34]
[1727720752225,3.2078,2589.6,2589.1,3.34]
[1727720752428,3.2078,2589.6,2589.2,0.38626]
[1727720752723,3.2078,2589.6,2589.1,6.5478]
[1727720752921,3.2078,2589.6,2589.3,0.38625]
[1727720753624,3.2078,2589.6,2589.1,6.5478]
[1727720753825,3.2078,2589.6,2589.5,0.38623]
[1727720754125,3.2078,2589.6,2589.4,3.34]
[1727720754324,3.2078,2589.6,2589.2,1.2105]
[1727720754624,3.2078,2589.6,2589.3,0.38626]
[1727720754926,3.2078,2589.6,2589.2,1.59677]
[1727720755119,3.2078,2589.6,2589.3,0.38625]
[1727720755320,3.2078,2589.6,2589.2,1.2105]
[1727720755516,3.2078,2589.6,2588.8,7.1285]
[1727720755716,3.2078,2589.6,2589.0,0.3863]
[1727720755916,3.2078,2589.6,2588.9,0.38631]
[1727720756220,3.2078,2589.3,2588.5,7.7583]
[1727720756519,3.59402,2589.6,2588.8,0.38633]
[1727720756824,3.59402,2589.6,2588.5,7.7583]
[1727720757021,3.2078,2589.6,2588.5,7.7583]
[1727720757224,3.2078,2589.3,2588.7,0.38635]
[1727720757921,3.2078,2589.3,2588.5,7.7583]
[1727720758130,3.2078,2589.3,2588.7,0.38634]
[1727720758329,3.2078,2589.3,2588.5,7.7583]
[1727720758518,0.38628,2589.2,2588.5,1.59687]
[1727720758722,3.2078,2589.0,2588.6,0.38636]
[1727720758927,3.2078,2589.0,2588.5,1.2105]
[1727720759119,3.2078,2589.0,2588.9,0.38632]
[1727720759523,3.2078,2589.0,2588.9,7.58872]
[1727720759724,3.2078,2589.6,2589.4,0.38624]
[1727720759925,3.2078,2589.6,2588.9,16.79652]
[1727720759926,3.2078,2589.6,2588.9,3.34]
[1727720760131,3.2078,2589.6,2589.4,0.38623]
[1727720760432,3.2078,2589.6,2589.1,3.2078]
[1727720760632,3.2078,2589.6,2588.9,3.34]
[1727720760827,3.2078,2589.2,2588.6,0.38636]
[1727720761134,0.38629,2589.1,2588.5,1.59687]
[1727720761328,3.2078,2589.2,2588.5,0.6258]
[1727720761533,0.6387,2589.1,2588.5,0.6258]
[1727720761730,0.6387,2589.1,2588.5,1.01217]
[1727720761731,1.025,2589.1,2588.5,1.01217]
[1727720761926,1.025,2589.1,2588.7,0.38634]
[1727720761927,0.6387,2589.1,2588.7,0.38634]
[1727720762125,0.6387,2589.1,2588.6,0.38635]
[1727720762327,0.6387,2589.1,2588.7,0.38635]
[1727720762537,3.2078,2589.2,2588.9,0.38631]
[1727720762727,3.2078,2589.2,2588.6,3.34]
[1727720763035,0.5999,2589.5,2589.2,0.38627]
[1727720763229,0.6072,2589.6,2589.4,0.38624]
[1727720763435,3.2078,2589.7,2589.1,3.2078]
[1727720763629,8.39106,2590.0,2589.5,0.38623]
[1727720763827,8.0049,2590.0,2589.6,0.3862]
[1727720764036,8.0049,2590.0,2589.2,3.9197]
[1727720764037,8.0049,2590.0,2589.5,0.38622]
[1727720764226,0.38621,2589.6,2589.0,1.011]
[1727720764428,3.2078,2589.4,2589.2,0.38627]
[1727720764627,3.2078,2589.4,2589.0,0.6247]
[1727720765030,3.2078,2589.4,2589.1,0.38629]
[1727720765437,3.2078,2589.4,2589.0,1.011]
[1727720765637,3.59405,2589.4,2589.0,0.6247]
[1727720765841,3.59406,2589.4,2588.9,1.758]
[1727720766040,3.59405,2589.4,2588.9,2.14431]
[1727720766339,0.38627,2589.3,2588.9,1.758]
[1727720766547,1.64047,2589.3,2588.9,1.758]
[1727720766835,0.38629,2589.2,2588.7,0.38634]
[1727720767138,5.1166,2589.3,2588.6,0.5797]
[1727720767139,3.2078,2589.1,2588.6,0.5797]
[1727720767335,3.2078,2589.1,2588.3,6.5478]
[1727720767633,3.2078,2589.1,2588.3,7.7755]
[1727720767825,3.2078,2589.1,2588.8,0.38633]
[1727720768026,3.2078,2589.1,2588.3,8.74151]
[1727720768229,3.2078,2589.1,2588.3,7.7755]
[1727720768436,0.38631,2589.0,2588.6,0.38635]
[1727720768748,0.38632,2588.9,2588.6,0.38636]
[1727720768944,3.2078,2589.1,2588.3,7.7755]
[1727720768945,3.2078,2589.1,2588.8,0.38632]
[1727720769237,1.2542,2589.3,2588.6,6.5478]
[1727720769430,4.56624,2589.5,2589.2,0.38627]
[1727720769743,4.56624,2589.5,2588.9,3.34]
[1727720769744,3.2078,2589.5,2588.9,3.34]
[1727720769938,3.2078,2589.5,2588.8,0.96582]
[1727720769939,0.38626,2589.3,2589.1,0.38628]
[1727720770131,3.59403,2589.5,2588.8,0.96582]
[1727720770333,0.38625,2589.4,2588.8,0.96582]
[1727720770735,0.38624,2589.4,2589.2,0.38626]
[1727720770932,3.2078,2589.5,2588.8,0.96582]
[1727720771249,3.2078,2589.2,2588.4,0.96596]
[1727720771545,0.3863,2589.0,2588.5,0.96595]
[1727720771844,0.38629,2589.1,2588.8,0.38632]
[1727720772138,3.2078,2589.2,2588.8,0.38632]
[1727720772340,3.2078,2588.9,2588.3,1.2277]
[1727720772637,0.38633,2588.8,2588.3,1.2277]
[1727720773141,0.38633,2588.8,2588.5,0.38636]
[1727720773342,3.2078,2588.9,2588.3,1.2277]
[1727720773541,3.2078,2588.9,2588.5,0.38637]
[1727720773542,0.38634,2588.8,2588.5,0.38637]
[1727720773745,0.38636,2588.6,2588.4,0.38639]
[1727720773941,4.17361,2588.9,2588.3,1.2277]
[1727720773942,0.38635,2588.7,2588.3,1.2277]
[1727720774131,3.2078,2588.9,2588.3,1.2277]
[1727720774538,0.38633,2588.8,2588.3,1.2277]
[1727720774737,0.38635,2588.7,2588.4,0.38638]
[1727720775045,3.59412,2588.9,2588.6,0.38635]
[1727720775244,0.38633,2588.8,2588.6,0.38635]
[1727720775635,0.38635,2588.7,2588.3,1.2277]
[1727720775834,3.2078,2588.9,2588.2,0.38641]
[1727720775835,3.2078,2588.6,2588.2,0.38641]
[1727720776038,3.59417,2588.6,2588.3,0.3864]
[1727720776243,3.59417,2588.6,2588.2,0.38642]
[1727720776244,0.38638,2588.5,2588.2,0.38642]
[1727720776445,3.2078,2588.6,2587.9,3.2078]
[1727720776741,0.38639,2588.5,2587.9,3.2078]
[1727720776940,0.38639,2588.5,2588.1,0.38643]
[1727720776941,0.6109,2588.5,2588.1,0.38643]
[1727720777145,0.3864,2588.4,2588.1,0.38643]
[1727720777445,0.6109,2588.5,2587.9,3.2078]
[1727720777636,0.99728,2588.5,2588.2,0.38641]
[1727720778035,0.99728,2588.5,2588.3,0.3864]
[1727720778239,3.2078,2588.6,2588.0,3.34]
[1727720778544,3.2078,2588.6,2588.5,0.38638]
[1727720781344,3.2078,2588.6,2588.0,3.34]
[1727720781638,3.2078,2588.6,2588.3,0.38639]
[1727720781639,3.59416,2588.6,2588.3,0.38639]
[1727720781844,3.2078,2588.6,2587.9,4.17396]
[1727720782045,3.2078,2588.6,2588.4,0.38639]
[1727720782240,3.59417,2588.6,2588.2,0.38641]
[1727720782434,3.59417,2588.6,2587.9,4.17396]
[1727720782435,3.2078,2588.6,2587.9,3.2078]
[1727720783047,3.59418,2588.6,2588.2,0.38642]
[1727720783445,0.38638,2588.5,2588.2,0.38642]